[Event "Live Chess"]
[Site "Chess.com"]
[Date "2023.05.20"]
[Round "-"]
[White "Duke_of_Bebington"]
[Black "SupremeTactician"]
[Result "0-1"]
[WhiteElo "1563"]
[BlackElo "2403"]
[TimeControl "300"]
[EndTime "9:22:47 PDT"]
[Termination "SupremeTactician won by resignation"]

1. e4 {[%clk 0:04:56.5]} 1... e5 {[%clk 0:04:58.3]} 2. Nf3 {[%clk 0:04:54.9]}
2... Nc6 {[%clk 0:04:58]} 3. Bc4 {[%clk 0:04:52.6]} 3... Bc5 {[%clk 0:04:57.6]}
4. b4 {[%clk 0:04:51.2]} 4... Bxb4 {[%clk 0:04:54.8]} 5. c3 {[%clk 0:04:50]}
5... Be7 {[%clk 0:04:54.5]} 6. d4 {[%clk 0:04:40.9]} 6... Na5 {[%clk 0:04:53.7]}
7. Bb3 {[%clk 0:04:38.4]} 7... d6 {[%clk 0:04:48.5]} 8. O-O {[%clk 0:04:21.5]}
8... Bg4 {[%clk 0:04:42.8]} 9. Qd3 {[%clk 0:04:12.6]} 9... Nxb3 {[%clk
0:04:38.7]} 10. axb3 {[%clk 0:04:10.7]} 10... Bxf3 {[%clk 0:04:37.5]} 11. Qxf3
{[%clk 0:04:08.7]} 11... Nf6 {[%clk 0:04:29.7]} 12. Bb2 {[%clk 0:03:51.9]} 12...
O-O {[%clk 0:04:26.5]} 13. Nd2 {[%clk 0:03:49.6]} 13... exd4 {[%clk 0:04:24.8]}
14. cxd4 {[%clk 0:03:47.6]} 14... c6 {[%clk 0:04:24.4]} 15. Rfe1 {[%clk
0:03:16.5]} 15... Qc7 {[%clk 0:04:20.3]} 16. Nf1 {[%clk 0:03:03.9]} 16... Rfe8
{[%clk 0:04:14.8]} 17. Ng3 {[%clk 0:02:42.8]} 17... Bf8 {[%clk 0:04:03.1]} 18.
Rac1 {[%clk 0:02:18.3]} 18... Qa5 {[%clk 0:03:47.5]} 19. Ra1 {[%clk 0:01:53.9]}
19... Qg5 {[%clk 0:03:40.6]} 20. Nf5 {[%clk 0:01:32.3]} 20... Qg4 {[%clk
0:03:26.5]} 21. Qxg4 {[%clk 0:01:26.1]} 21... Nxg4 {[%clk 0:03:26.4]} 22. h3
{[%clk 0:01:24.1]} 22... Nf6 {[%clk 0:03:25]} 23. d5 {[%clk 0:01:19.5]} 23...
Nxe4 {[%clk 0:03:17.1]} 24. Re3 {[%clk 0:01:10.3]} 24... cxd5 {[%clk 0:03:12]}
25. Rae1 {[%clk 0:01:07.9]} 25... Rec8 {[%clk 0:03:06.9]} 26. Nd4 {[%clk
0:01:04.1]} 26... g6 {[%clk 0:03:01.4]} 27. Nb5 {[%clk 0:00:57.7]} 27... a6
{[%clk 0:02:58.7]} 28. Nc3 {[%clk 0:00:55.8]} 28... Nxc3 {[%clk 0:02:57.5]} 29.
Bxc3 {[%clk 0:00:54.9]} 29... Rc7 {[%clk 0:02:50.1]} 30. Bb4 {[%clk 0:00:48.7]}
30... a5 {[%clk 0:02:47]} 31. Ba3 {[%clk 0:00:46.9]} 31... b5 {[%clk 0:02:46.5]}
32. Re8 {[%clk 0:00:40.4]} 32... Rxe8 {[%clk 0:02:44.8]} 33. Rxe8 {[%clk
0:00:40.2]} 33... b4 {[%clk 0:02:44.3]} 34. Bb2 {[%clk 0:00:38.9]} 34... Re7
{[%clk 0:02:41.6]} 35. Ra8 {[%clk 0:00:35.1]} 35... Re1+ {[%clk 0:02:37.7]} 36.
Kh2 {[%clk 0:00:33.2]} 36... f5 {[%clk 0:02:26.8]} 37. Rxa5 {[%clk 0:00:30.4]}
37... Rb1 {[%clk 0:02:26]} 38. Bd4 {[%clk 0:00:22.4]} 38... Rxb3 {[%clk
0:02:24.4]} 39. Rxd5 {[%clk 0:00:21.2]} 39... Rd3 {[%clk 0:02:21.9]} 40. Kg1
{[%clk 0:00:13.5]} 40... b3 {[%clk 0:02:21.1]} 41. Kf1 {[%clk 0:00:11.9]} 41...
b2 {[%clk 0:02:20.5]} 42. Bxb2 {[%clk 0:00:10.3]} 42... Rxd5 {[%clk 0:02:19.8]}
0-1

[Event "Live Chess"]
[Site "Chess.com"]
[Date "2023.05.20"]
[Round "-"]
[White "Ocelot32"]
[Black "FlyingChessKestrel13"]
[Result "0-1"]
[WhiteElo "1357"]
[BlackElo "2154"]
[TimeControl "300"]
[EndTime "9:22:50 PDT"]
[Termination "FlyingChessKestrel13 won by resignation"]

1. e4 {[%clk 0:04:57.9]} 1... Nc6 {[%clk 0:04:57.4]} 2. Nf3 {[%clk 0:04:55]}
2... d6 {[%clk 0:04:53.7]} 3. Bb5 {[%clk 0:04:49.8]} 3... g6 {[%clk 0:04:50.9]}
4. O-O {[%clk 0:04:43.8]} 4... Bg7 {[%clk 0:04:49]} 5. c3 {[%clk 0:04:42.7]}
5... Bd7 {[%clk 0:04:47.4]} 6. d4 {[%clk 0:04:41.1]} 6... e5 {[%clk 0:04:46]} 7.
Ba4 {[%clk 0:04:33.7]} 7... exd4 {[%clk 0:04:39.6]} 8. cxd4 {[%clk 0:04:31.4]}
8... Nge7 {[%clk 0:04:39]} 9. Nc3 {[%clk 0:04:21.7]} 9... O-O {[%clk 0:04:31.7]}
10. Bb3 {[%clk 0:04:20.6]} 10... a5 {[%clk 0:04:22.9]} 11. a4 {[%clk 0:04:15.8]}
11... Nb4 {[%clk 0:04:21.4]} 12. Bf4 {[%clk 0:04:01.2]} 12... Bg4 {[%clk
0:04:19.5]} 13. h3 {[%clk 0:03:56.9]} 13... Bxf3 {[%clk 0:04:18.4]} 14. Qxf3
{[%clk 0:03:56]} 14... Bxd4 {[%clk 0:04:15.9]} 15. e5 {[%clk 0:03:51.3]} 15...
dxe5 {[%clk 0:04:12.9]} 16. Rad1 {[%clk 0:03:48.6]} 16... Qc8 {[%clk 0:03:50.9]}
17. Bh6 {[%clk 0:03:44.7]} 17... Qf5 {[%clk 0:03:43.4]} 18. Qxf5 {[%clk
0:03:27.8]} 18... Nxf5 {[%clk 0:03:41.5]} 19. Bxf8 {[%clk 0:03:26.6]} 19... Rxf8
{[%clk 0:03:40.2]} 20. Nd5 {[%clk 0:03:20.7]} 20... Nxd5 {[%clk 0:03:34.8]} 21.
Bxd5 {[%clk 0:03:19.3]} 21... c6 {[%clk 0:03:33.6]} 22. Be4 {[%clk 0:03:13.8]}
22... Nd6 {[%clk 0:03:31.5]} 23. Rfe1 {[%clk 0:03:05]} 23... Nxe4 {[%clk
0:03:29.2]} 24. Rxe4 {[%clk 0:03:03.9]} 24... Rb8 {[%clk 0:03:24]} 25. Rb1
{[%clk 0:03:01.9]} 25... b5 {[%clk 0:03:21.7]} 26. axb5 {[%clk 0:02:53.3]} 26...
Rxb5 {[%clk 0:03:20]} 27. Re2 {[%clk 0:02:42.4]} 27... a4 {[%clk 0:03:18.8]} 28.
Rc2 {[%clk 0:02:35.5]} 28... c5 {[%clk 0:03:17]} 29. Ra1 {[%clk 0:02:31.2]}
29... Rb4 {[%clk 0:03:10.3]} 30. b3 {[%clk 0:02:07.5]} 30... axb3 {[%clk
0:03:07]} 31. Re2 {[%clk 0:02:05.5]} 31... Bxa1 {[%clk 0:03:04.6]} 0-1

[Event "Live Chess"]
[Site "Chess.com"]
[Date "2023.05.20"]
[Round "-"]
[White "thrithik"]
[Black "MaximKris"]
[Result "0-1"]
[WhiteElo "489"]
[BlackElo "1790"]
[TimeControl "300"]
[EndTime "9:22:52 PDT"]
[Termination "MaximKris won by checkmate"]

1. a3 {[%clk 0:04:59]} 1... d5 {[%clk 0:04:59.2]} 2. b3 {[%clk 0:04:57.3]} 2...
Nf6 {[%clk 0:04:58.8]} 3. Nc3 {[%clk 0:04:56.1]} 3... Nc6 {[%clk 0:04:58.3]} 4.
d3 {[%clk 0:04:53.7]} 4... e5 {[%clk 0:04:58.2]} 5. Be3 {[%clk 0:04:50.3]} 5...
Bc5 {[%clk 0:04:57.8]} 6. Bxc5 {[%clk 0:04:48.5]} 6... d4 {[%clk 0:04:57.4]} 7.
Nb5 {[%clk 0:04:43.4]} 7... a6 {[%clk 0:04:55.2]} 8. Nd6+ {[%clk 0:04:33.8]}
8... cxd6 {[%clk 0:04:54]} 9. b4 {[%clk 0:04:23.3]} 9... dxc5 {[%clk 0:04:52.9]}
10. bxc5 {[%clk 0:04:21.9]} 10... Qa5+ {[%clk 0:04:51.7]} 11. Qd2 {[%clk
0:04:16.9]} 11... Qxd2+ {[%clk 0:04:51.6]} 12. Kxd2 {[%clk 0:04:15]} 12... Nd5
{[%clk 0:04:51.5]} 13. c4 {[%clk 0:04:11.8]} 13... Nc3 {[%clk 0:04:51.4]} 14.
Rc1 {[%clk 0:04:07.7]} 14... Be6 {[%clk 0:04:48.5]} 15. Rxc3 {[%clk 0:04:05.1]}
15... dxc3+ {[%clk 0:04:48.4]} 16. Kxc3 {[%clk 0:04:04]} 16... O-O-O {[%clk
0:04:48.3]} 17. d4 {[%clk 0:03:59.7]} 17... Nxd4 {[%clk 0:04:47]} 18. Kb4 {[%clk
0:03:53.3]} 18... Nc6+ {[%clk 0:04:46]} 19. Ka4 {[%clk 0:03:47.6]} 19... Bxc4
{[%clk 0:04:43.9]} 20. Nf3 {[%clk 0:03:37.7]} 20... b5+ {[%clk 0:04:41.7]} 21.
cxb6 {[%clk 0:03:25.8]} 21... Kb7 {[%clk 0:04:40.1]} 22. Nxe5 {[%clk 0:03:19.7]}
22... Nxe5 {[%clk 0:04:38.8]} 23. e3 {[%clk 0:03:15.5]} 23... Bb5+ {[%clk
0:04:38.7]} 24. Bxb5 {[%clk 0:03:12.1]} 24... axb5+ {[%clk 0:04:38.6]} 25. Kxb5
{[%clk 0:03:10.5]} 25... Rd5+ {[%clk 0:04:38.5]} 26. Kb4 {[%clk 0:03:05.4]}
26... Kxb6 {[%clk 0:04:38.4]} 27. Ra1 {[%clk 0:02:58.9]} 27... Nc6+ {[%clk
0:04:38.3]} 28. Kc4 {[%clk 0:02:53.3]} 28... Rc5+ {[%clk 0:04:38.2]} 29. Kb3
{[%clk 0:02:51.4]} 29... Rd8 {[%clk 0:04:38.1]} 30. Ra2 {[%clk 0:02:48.3]} 30...
Rd3+ {[%clk 0:04:37.4]} 31. Ka4 {[%clk 0:02:45.7]} 31... Ra5# {[%clk 0:04:36.4]}
0-1

[Event "Live Chess"]
[Site "Chess.com"]
[Date "2023.05.20"]
[Round "-"]
[White "Iggle-Piggle"]
[Black "EdenHazard8"]
[Result "0-1"]
[WhiteElo "1254"]
[BlackElo "2103"]
[TimeControl "300"]
[EndTime "9:22:59 PDT"]
[Termination "EdenHazard8 won by resignation"]

1. e4 {[%clk 0:04:55.4]} 1... c5 {[%clk 0:04:58.6]} 2. Nc3 {[%clk 0:04:52.8]}
2... Nc6 {[%clk 0:04:57.7]} 3. g3 {[%clk 0:04:48.3]} 3... g6 {[%clk 0:04:55.9]}
4. Bg2 {[%clk 0:04:46.5]} 4... Bg7 {[%clk 0:04:54.9]} 5. d3 {[%clk 0:04:40.1]}
5... e6 {[%clk 0:04:52.1]} 6. f4 {[%clk 0:04:38.4]} 6... Nge7 {[%clk 0:04:51.1]}
7. Nf3 {[%clk 0:04:33.4]} 7... d5 {[%clk 0:04:50.2]} 8. e5 {[%clk 0:04:29.1]}
8... a6 {[%clk 0:04:43.8]} 9. O-O {[%clk 0:04:25.2]} 9... b5 {[%clk 0:04:42]}
10. Ne2 {[%clk 0:04:10.7]} 10... Bb7 {[%clk 0:04:37]} 11. d4 {[%clk 0:04:08.6]}
11... c4 {[%clk 0:04:36]} 12. c3 {[%clk 0:04:06]} 12... Qb6 {[%clk 0:04:27.8]}
13. Kh1 {[%clk 0:04:02.6]} 13... b4 {[%clk 0:04:24.2]} 14. Bd2 {[%clk
0:03:55.2]} 14... a5 {[%clk 0:04:22.6]} 15. b3 {[%clk 0:03:45.1]} 15... Ba6
{[%clk 0:04:18.2]} 16. bxc4 {[%clk 0:03:36.8]} 16... Bxc4 {[%clk 0:04:18.1]} 17.
cxb4 {[%clk 0:03:34.3]} 17... axb4 {[%clk 0:04:08.1]} 18. Re1 {[%clk 0:03:25.6]}
18... Bxa2 {[%clk 0:03:58.8]} 19. Qc2 {[%clk 0:03:14]} 19... b3 {[%clk
0:03:56.4]} 20. Qc3 {[%clk 0:03:04.4]} 20... b2 {[%clk 0:03:51.9]} 0-1

[Event "Live Chess"]
[Site "Chess.com"]
[Date "2023.05.20"]
[Round "-"]
[White "aliciabutteriss"]
[Black "killershark69420"]
[Result "1-0"]
[WhiteElo "512"]
[BlackElo "300"]
[TimeControl "300"]
[EndTime "9:23:02 PDT"]
[Termination "aliciabutteriss won by resignation"]

1. e4 {[%clk 0:04:59.4]} 1... e5 {[%clk 0:04:58.9]} 2. Nf3 {[%clk 0:04:58.1]}
2... Nf6 {[%clk 0:04:57.4]} 3. Bc4 {[%clk 0:04:53.4]} 3... Nc6 {[%clk
0:04:54.4]} 4. Nc3 {[%clk 0:04:50.3]} 4... Bb4 {[%clk 0:04:48]} 5. d3 {[%clk
0:04:43.5]} 5... Bxc3+ {[%clk 0:04:46.5]} 6. bxc3 {[%clk 0:04:40.5]} 6... O-O
{[%clk 0:04:41.7]} 7. Ba3 {[%clk 0:04:36.5]} 7... d6 {[%clk 0:04:35.7]} 8. Ng5
{[%clk 0:04:28.1]} 8... Bg4 {[%clk 0:04:27.2]} 9. f3 {[%clk 0:04:23.1]} 9... Bh5
{[%clk 0:04:08.8]} 10. Qb1 {[%clk 0:04:04.3]} 10... Rb8 {[%clk 0:03:57.5]} 11.
Qb3 {[%clk 0:03:46.1]} 11... b5 {[%clk 0:03:52.8]} 12. Ne6 {[%clk 0:03:23.7]}
12... Qe7 {[%clk 0:03:40.2]} 13. Nxf8 {[%clk 0:03:13.8]} 13... Qxf8 {[%clk
0:03:37.8]} 14. Bxb5 {[%clk 0:03:05.4]} 14... a6 {[%clk 0:03:33.3]} 15. g4
{[%clk 0:02:40]} 15... Rxb5 {[%clk 0:03:21.6]} 16. Qc4 {[%clk 0:02:24.3]} 16...
d5 {[%clk 0:03:02.3]} 17. exd5 {[%clk 0:02:19.1]} 17... Qb4 {[%clk 0:02:53.8]}
18. cxb4 {[%clk 0:02:16.5]} 18... Nxb4 {[%clk 0:02:47.1]} 19. Qxc7 {[%clk
0:02:09.4]} 19... g5 {[%clk 0:02:35.6]} 20. Qc8+ {[%clk 0:01:58.3]} 20... Kg7
{[%clk 0:02:31.9]} 21. Qxa6 {[%clk 0:01:56.9]} 21... Nxc2+ {[%clk 0:02:15]} 22.
Kd2 {[%clk 0:01:46.5]} 22... Nxa1 {[%clk 0:02:13.4]} 23. Qxb5 {[%clk 0:01:45.1]}
23... Bg6 {[%clk 0:02:05.4]} 24. Qb2 {[%clk 0:01:40.4]} 24... Nxd5 {[%clk
0:01:55.3]} 25. Qxe5+ {[%clk 0:01:38.8]} 25... f6 {[%clk 0:01:48.1]} 26. Qxd5
{[%clk 0:01:37]} 1-0

[Event "Live Chess"]
[Site "Chess.com"]
[Date "2023.05.20"]
[Round "-"]
[White "PackedNote"]
[Black "HD_IN4k"]
[Result "1-0"]
[WhiteElo "779"]
[BlackElo "297"]
[TimeControl "300"]
[EndTime "9:23:05 PDT"]
[Termination "PackedNote won by checkmate"]

1. e4 {[%clk 0:04:58.5]} 1... g6 {[%clk 0:04:55.9]} 2. Bc4 {[%clk 0:04:56.3]}
2... Bg7 {[%clk 0:04:55.1]} 3. Qf3 {[%clk 0:04:54.8]} 3... Nh6 {[%clk
0:04:45.3]} 4. d3 {[%clk 0:04:51.9]} 4... e6 {[%clk 0:04:42.8]} 5. Ne2 {[%clk
0:04:44.1]} 5... Nc6 {[%clk 0:04:42.1]} 6. O-O {[%clk 0:04:42.7]} 6... Na5
{[%clk 0:04:40.8]} 7. Bb3 {[%clk 0:04:34.8]} 7... Nxb3 {[%clk 0:04:38.9]} 8.
axb3 {[%clk 0:04:34.7]} 8... b6 {[%clk 0:04:32.9]} 9. Nbc3 {[%clk 0:04:23.4]}
9... Bb7 {[%clk 0:04:31.5]} 10. Ng3 {[%clk 0:04:13.3]} 10... d5 {[%clk 0:04:30]}
11. Re1 {[%clk 0:04:09.7]} 11... d4 {[%clk 0:04:24.6]} 12. Nb5 {[%clk
0:04:04.8]} 12... a6 {[%clk 0:04:21.6]} 13. Na3 {[%clk 0:03:54.7]} 13... O-O
{[%clk 0:04:02.5]} 14. c3 {[%clk 0:03:50.5]} 14... f5 {[%clk 0:04:01.5]} 15. Qd1
{[%clk 0:03:34.5]} 15... fxe4 {[%clk 0:03:58.9]} 16. Nxe4 {[%clk 0:03:31.6]}
16... Bxe4 {[%clk 0:03:48.7]} 17. Rxe4 {[%clk 0:03:26.7]} 17... Be5 {[%clk
0:03:32.5]} 18. Bxh6 {[%clk 0:03:12.6]} 18... Qh4 {[%clk 0:03:29.8]} 19. Rxh4
{[%clk 0:03:09.1]} 19... Rf7 {[%clk 0:03:14.1]} 20. Qg4 {[%clk 0:03:02.4]} 20...
dxc3 {[%clk 0:03:06.2]} 21. bxc3 {[%clk 0:02:56.7]} 21... Bxc3 {[%clk
0:03:01.7]} 22. Rc1 {[%clk 0:02:53.8]} 22... Bb2 {[%clk 0:02:59.1]} 23. Rc2
{[%clk 0:02:52.5]} 23... Bxa3 {[%clk 0:02:58]} 24. Qxe6 {[%clk 0:02:49.2]} 24...
Rd8 {[%clk 0:02:44.9]} 25. Rxc7 {[%clk 0:02:44.8]} 25... Rxd3 {[%clk 0:02:40.5]}
26. Qxf7+ {[%clk 0:02:42.7]} 26... Kh8 {[%clk 0:02:36.5]} 27. Qg7# {[%clk
0:02:41.3]} 1-0

[Event "Live Chess"]
[Site "Chess.com"]
[Date "2023.05.20"]
[Round "-"]
[White "apl_trainer"]
[Black "OBrightwell100"]
[Result "1-0"]
[WhiteElo "1521"]
[BlackElo "1330"]
[TimeControl "300"]
[EndTime "9:23:14 PDT"]
[Termination "apl_trainer won by resignation"]

1. d4 {[%clk 0:04:58.4]} 1... d5 {[%clk 0:04:58.7]} 2. c4 {[%clk 0:04:57.1]}
2... e6 {[%clk 0:04:55.9]} 3. Nc3 {[%clk 0:04:55.7]} 3... a6 {[%clk 0:04:53.6]}
4. Nf3 {[%clk 0:04:51.5]} 4... dxc4 {[%clk 0:04:51.9]} 5. a4 {[%clk 0:04:49.4]}
5... Nc6 {[%clk 0:04:44.1]} 6. e3 {[%clk 0:04:33.7]} 6... Na5 {[%clk 0:04:41.6]}
7. Ne5 {[%clk 0:04:32.3]} 7... b5 {[%clk 0:04:24.3]} 8. axb5 {[%clk 0:04:26.9]}
8... axb5 {[%clk 0:04:18.4]} 9. Nxb5 {[%clk 0:04:22.9]} 9... Bd7 {[%clk
0:04:14.7]} 10. Nc3 {[%clk 0:04:13.8]} 10... f6 {[%clk 0:04:09.4]} 11. Qh5+
{[%clk 0:04:08.4]} 11... Ke7 {[%clk 0:04:01.7]} 12. Qf7+ {[%clk 0:03:50.9]}
12... Kd6 {[%clk 0:03:57.5]} 13. Rxa5 {[%clk 0:03:49.2]} 13... Rxa5 {[%clk
0:03:36.4]} 14. Nxc4+ {[%clk 0:03:46.7]} 14... Kc6 {[%clk 0:03:30.8]} 15. Nxa5+
{[%clk 0:03:44.8]} 15... Kb6 {[%clk 0:03:29.6]} 16. Nc4+ {[%clk 0:03:39.7]}
16... Kc6 {[%clk 0:03:27.4]} 17. Be2 {[%clk 0:03:34.9]} 17... Qe8 {[%clk
0:03:09.5]} 1-0

[Event "Live Chess"]
[Site "Chess.com"]
[Date "2023.05.20"]
[Round "-"]
[White "grillage"]
[Black "Albul"]
[Result "1-0"]
[WhiteElo "1841"]
[BlackElo "2196"]
[TimeControl "300"]
[EndTime "9:23:17 PDT"]
[Termination "grillage won on time"]

1. d4 {[%clk 0:04:59]} 1... f5 {[%clk 0:04:58.8]} 2. Bg5 {[%clk 0:04:55.1]} 2...
g6 {[%clk 0:04:57.6]} 3. Nc3 {[%clk 0:04:50.2]} 3... Bg7 {[%clk 0:04:57]} 4. e4
{[%clk 0:04:48.5]} 4... d6 {[%clk 0:04:56.4]} 5. Bc4 {[%clk 0:04:36.2]} 5... Nc6
{[%clk 0:04:49.2]} 6. Nge2 {[%clk 0:04:33.8]} 6... Nf6 {[%clk 0:04:38.9]} 7. Qd2
{[%clk 0:04:15.4]} 7... Nxe4 {[%clk 0:04:29.8]} 8. Nxe4 {[%clk 0:04:10.8]} 8...
fxe4 {[%clk 0:04:28.2]} 9. Nc3 {[%clk 0:03:58.1]} 9... Nxd4 {[%clk 0:04:17.2]}
10. Nxe4 {[%clk 0:03:51.2]} 10... Bf5 {[%clk 0:04:16.3]} 11. f3 {[%clk 0:03:21]}
11... Bxe4 {[%clk 0:03:49.8]} 12. fxe4 {[%clk 0:03:18.5]} 12... Qd7 {[%clk
0:03:49.3]} 13. O-O-O {[%clk 0:03:12.1]} 13... O-O-O {[%clk 0:03:25.7]} 14. Rhf1
{[%clk 0:03:04.2]} 14... Rdf8 {[%clk 0:03:23.1]} 15. Kb1 {[%clk 0:03:02.4]}
15... e5 {[%clk 0:03:08.3]} 16. Qa5 {[%clk 0:02:56.9]} 16... Nc6 {[%clk
0:03:01.9]} 17. Qa4 {[%clk 0:02:47.1]} 17... Kb8 {[%clk 0:02:47.9]} 18. Bb5
{[%clk 0:02:44.3]} 18... Rxf1 {[%clk 0:02:45.6]} 19. Rxf1 {[%clk 0:02:42.6]}
19... Rf8 {[%clk 0:02:45.1]} 20. Rxf8+ {[%clk 0:02:35.4]} 20... Bxf8 {[%clk
0:02:43.1]} 21. Bxc6 {[%clk 0:02:35]} 21... Qxc6 {[%clk 0:02:41.6]} 22. Qxc6
{[%clk 0:02:34.2]} 22... bxc6 {[%clk 0:02:40.7]} 23. b3 {[%clk 0:02:26.6]} 23...
d5 {[%clk 0:02:37.5]} 24. Bf6 {[%clk 0:02:18.8]} 24... Bd6 {[%clk 0:02:35.8]}
25. Kb2 {[%clk 0:02:16]} 25... Kc8 {[%clk 0:02:33.6]} 26. Kc3 {[%clk 0:02:14.9]}
26... Kd7 {[%clk 0:02:33.2]} 27. Kd3 {[%clk 0:02:13.3]} 27... Ke6 {[%clk
0:02:32.6]} 28. Bg7 {[%clk 0:02:11.4]} 28... Be7 {[%clk 0:02:26.1]} 29. Bh6
{[%clk 0:02:08.9]} 29... Bc5 {[%clk 0:02:21.3]} 30. a4 {[%clk 0:02:05.8]} 30...
a6 {[%clk 0:02:19.4]} 31. Bg7 {[%clk 0:02:04.7]} 31... Bg1 {[%clk 0:02:16.2]}
32. h3 {[%clk 0:02:03.3]} 32... Bh2 {[%clk 0:02:15.6]} 33. Bf8 {[%clk 0:01:45]}
33... Bf4 {[%clk 0:02:12.1]} 34. Bc5 {[%clk 0:01:42.6]} 34... h5 {[%clk
0:02:04.9]} 35. Ba7 {[%clk 0:01:40.2]} 35... g5 {[%clk 0:02:01.8]} 36. Bb8
{[%clk 0:01:37.4]} 36... Kd7 {[%clk 0:01:59.4]} 37. Ba7 {[%clk 0:01:36.2]} 37...
Kd6 {[%clk 0:01:57.7]} 38. Bf2 {[%clk 0:01:30.1]} 38... g4 {[%clk 0:01:55.1]}
39. hxg4 {[%clk 0:01:27.8]} 39... hxg4 {[%clk 0:01:54.6]} 40. Bh4 {[%clk
0:01:24.8]} 40... Bh6 {[%clk 0:01:29.4]} 41. Bf6 {[%clk 0:01:23]} 41... Ke6
{[%clk 0:01:27.1]} 42. Bd8 {[%clk 0:01:22]} 42... Kd7 {[%clk 0:01:26.1]} 43. Bf6
{[%clk 0:01:21.1]} 43... Bf4 {[%clk 0:01:25.3]} 44. Bh4 {[%clk 0:01:18.6]} 44...
Kd6 {[%clk 0:01:19.4]} 45. Bf6 {[%clk 0:01:16.9]} 45... dxe4+ {[%clk 0:01:03.1]}
46. Kxe4 {[%clk 0:01:15.5]} 46... Ke6 {[%clk 0:01:01.1]} 47. Bd8 {[%clk
0:01:14.5]} 47... Kd7 {[%clk 0:00:56.6]} 48. Bf6 {[%clk 0:01:13.6]} 48... Kd6
{[%clk 0:00:55.9]} 49. Bh4 {[%clk 0:01:10.1]} 49... Ke6 {[%clk 0:00:52.2]} 50.
Bd8 {[%clk 0:01:09]} 50... Kd6 {[%clk 0:00:44.7]} 51. Bf6 {[%clk 0:01:08.1]}
51... c5 {[%clk 0:00:14.9]} 52. Bh4 {[%clk 0:01:05.7]} 52... c4 {[%clk
0:00:08.9]} 53. Bd8 {[%clk 0:00:59.2]} 53... cxb3 {[%clk 0:00:06.7]} 54. cxb3
{[%clk 0:00:56.3]} 54... c6 {[%clk 0:00:06.2]} 55. Bb6 {[%clk 0:00:52.5]} 55...
Ke6 {[%clk 0:00:02]} 56. Bc7 {[%clk 0:00:51]} 1-0

[Event "Live Chess"]
[Site "Chess.com"]
[Date "2023.05.20"]
[Round "-"]
[White "wadsy27"]
[Black "Doge_Dandolo"]
[Result "1-0"]
[WhiteElo "2585"]
[BlackElo "2053"]
[TimeControl "300"]
[EndTime "9:23:20 PDT"]
[Termination "wadsy27 won by resignation"]

1. Nf3 {[%clk 0:04:57.7]} 1... Nf6 {[%clk 0:04:58.2]} 2. g3 {[%clk 0:04:56.8]}
2... g6 {[%clk 0:04:57.1]} 3. Bg2 {[%clk 0:04:53.7]} 3... Bg7 {[%clk 0:04:56.6]}
4. O-O {[%clk 0:04:53.1]} 4... O-O {[%clk 0:04:56.2]} 5. c4 {[%clk 0:04:52.4]}
5... c6 {[%clk 0:04:52.7]} 6. b3 {[%clk 0:04:45.5]} 6... d6 {[%clk 0:04:50.5]}
7. Bb2 {[%clk 0:04:44.1]} 7... Qc7 {[%clk 0:04:50]} 8. Nc3 {[%clk 0:04:43]} 8...
e5 {[%clk 0:04:48.1]} 9. d3 {[%clk 0:04:41.6]} 9... Nbd7 {[%clk 0:04:45.3]} 10.
Rc1 {[%clk 0:04:39.9]} 10... Re8 {[%clk 0:04:41.1]} 11. e4 {[%clk 0:04:38.6]}
11... Nc5 {[%clk 0:04:34]} 12. b4 {[%clk 0:04:33.9]} 12... Ne6 {[%clk
0:04:31.1]} 13. b5 {[%clk 0:04:25.5]} 13... Nd7 {[%clk 0:04:15.5]} 14. Ba3
{[%clk 0:04:16.7]} 14... Ndc5 {[%clk 0:04:10.9]} 15. Na4 {[%clk 0:04:02.8]}
15... Nxa4 {[%clk 0:04:07.7]} 16. Qxa4 {[%clk 0:04:01.9]} 16... Bd7 {[%clk
0:04:00.5]} 17. bxc6 {[%clk 0:03:39.2]} 17... Bxc6 {[%clk 0:03:57.2]} 18. Qb3
{[%clk 0:03:33.3]} 18... Bh6 {[%clk 0:03:53.5]} 19. Rb1 {[%clk 0:03:30.8]} 19...
Rab8 {[%clk 0:03:47.1]} 20. h4 {[%clk 0:03:21.5]} 20... Qd7 {[%clk 0:03:31.1]}
21. Bh3 {[%clk 0:03:18.6]} 21... Rec8 {[%clk 0:03:25.8]} 22. Qb4 {[%clk
0:03:15.3]} 22... Bf8 {[%clk 0:03:18.5]} 23. Qd2 {[%clk 0:03:06]} 23... Qe7
{[%clk 0:03:11.1]} 24. Nxe5 {[%clk 0:03:01.1]} 24... Bg7 {[%clk 0:03:01.1]} 25.
Nxc6 {[%clk 0:02:58.8]} 25... bxc6 {[%clk 0:02:56.9]} 26. Bb2 {[%clk 0:02:48.5]}
26... Bxb2 {[%clk 0:02:54.5]} 27. Rxb2 {[%clk 0:02:47.8]} 27... Rd8 {[%clk
0:02:51.8]} 28. Bxe6 {[%clk 0:02:44.3]} 28... Qxe6 {[%clk 0:02:45.9]} 29. Rfb1
{[%clk 0:02:43.1]} 29... Rxb2 {[%clk 0:02:44]} 30. Qxb2 {[%clk 0:02:41.6]} 30...
Qg4 {[%clk 0:02:39.3]} 31. Kg2 {[%clk 0:02:39.5]} 31... d5 {[%clk 0:02:34.9]}
32. Qf6 {[%clk 0:02:37.9]} 32... Re8 {[%clk 0:02:31]} 33. Qxc6 {[%clk 0:02:34]}
33... dxe4 {[%clk 0:02:28.7]} 34. Qxe8+ {[%clk 0:02:32.9]} 1-0

[Event "Live Chess"]
[Site "Chess.com"]
[Date "2023.05.20"]
[Round "-"]
[White "nigelst"]
[Black "SimonB4a"]
[Result "1/2-1/2"]
[WhiteElo "1853"]
[BlackElo "2176"]
[TimeControl "300"]
[EndTime "9:23:24 PDT"]
[Termination "Game drawn by repetition"]

1. e4 {[%clk 0:04:58.3]} 1... e6 {[%clk 0:04:58.8]} 2. d4 {[%clk 0:04:56]} 2...
d5 {[%clk 0:04:57.8]} 3. exd5 {[%clk 0:04:54.2]} 3... exd5 {[%clk 0:04:56.7]} 4.
Nf3 {[%clk 0:04:53.5]} 4... Bd6 {[%clk 0:04:55.4]} 5. Bd3 {[%clk 0:04:52.3]}
5... Ne7 {[%clk 0:04:54.1]} 6. O-O {[%clk 0:04:50]} 6... Nbc6 {[%clk 0:04:52.7]}
7. c4 {[%clk 0:04:42.2]} 7... dxc4 {[%clk 0:04:45.5]} 8. Bxc4 {[%clk 0:04:40.9]}
8... Bg4 {[%clk 0:04:44.2]} 9. Bxf7+ {[%clk 0:04:30.9]} 9... Kxf7 {[%clk
0:04:03.9]} 10. Ng5+ {[%clk 0:04:27.4]} 10... Kg6 {[%clk 0:04:02.7]} 11. Qxg4
{[%clk 0:04:25.9]} 11... Qc8 {[%clk 0:03:54.2]} 12. Ne6+ {[%clk 0:04:01.1]}
12... Kf7 {[%clk 0:03:48.4]} 13. Ng5+ {[%clk 0:03:38.9]} 13... Kg6 {[%clk
0:03:44]} 14. Ne6+ {[%clk 0:02:45.9]} 14... Kf7 {[%clk 0:03:42.5]} 15. Ng5+
{[%clk 0:02:39.2]} 15... Kg6 {[%clk 0:03:41.3]} 1/2-1/2